[Event "VII Sunway Sitges Open 2020"]
[Site "Sitges"]
[Date "2020.12.15"]
[Round "3.21"]
[White "Csiki, Endre"]
[Black "Siebrecht, Sebastian"]
[Result "1-0"]
[ECO "B06"]
[WhiteElo "2231"]
[BlackElo "2429"]
[Annotator "ChessBase"]
[PlyCount "75"]
[EventDate "2020.12.13"]
[EventType "swiss"]
[EventCountry "ESP"]
[SourceTitle "playchess.com"]
[Source "ChessBase"]
[SourceQuality "1"]
[TimeControl "40/5400+30:1800+30"]

1. e4 {[%emt 0:00:00]} g6 {[%emt 0:00:00]} 2. d4 {[%emt 0:00:10]} Bg7 {[%emt 0:00:30]} 3. Nc3 d6 {[%emt 0:00:00]} 4. Be3 {[%emt 0:00:00]} a6 {[%emt 0:00:00]} 5. Nf3 {[%emt 0:00:00]} Nd7 {[%emt 0:00:00]} 6. Qd2 {[%emt 0:00:00]} h6 {[%emt 0:00:13]} 7. Bd3 {[%emt 0:00:28]} e6 {[%emt 0:02:51]} 8. O-O-O {[%emt 0:02:50]} b5 {[%emt 0:05:54]} 9. e5 {[%emt 0:03:15]} d5 {[%emt 0:00:56]} 10. h4 {[%emt 0:00:30]} Ne7 {[%emt 0:07:06]} 11. h5 g5 12. Nxg5 {[%emt 0:05:56]} hxg5 {[%emt 0:00:51]} 13. Bxg5 c5 {[%emt 0:03:24]} 14. h6 {[%emt 0:01:20]} Bf8 {[%emt 0:08:53]} 15. dxc5 {[%emt 0:11:39]} Nxc5 16. Kb1 {[%emt 0:20:14]} b4 {[%emt 0:03:43]} 17. Ne2 {[%emt 0:00:17]} Nxd3 {[%emt 0:03:03]} 18. cxd3 {[%emt 0:01:55]} Qb6 {[%emt 0:06:43]} 19. Ng3 {[%emt 0:01:18]} Bb7 {[%emt 0:02:39]} 20. h7 {[%emt 0:08:20]} d4 {[%emt 0:13:27]} 21. Bf6 Rxh7 {[%emt 0:16:24]} 22. Rxh7 {[%emt 0:00:49]} Nd5 {[%emt 0:00:01]} 23. Ka1 {[%emt 0:02:08]} b3 {[%emt 0:04:57]} 24. Ne4 Nb4 25. Nd6+ {[%emt 0:28:04]} Bxd6 {[%emt 0:01:09]} 26. exd6 {[%emt 0:00:02]} Qxd6 {[%emt 0:15:03]} 27. Qg5 {[%emt 0:10:09]} Kd7 {[%emt 0:02:24]} 28. Rxf7+ {[%emt 0:00:22]} Kc6 29. Be5 {[%emt 0:02:35]} Nc2+ {[%emt 0:03:16]} 30. Kb1 {[%emt 0:00:04]} bxa2+ {[%emt 0:00:18]} 31. Kxc2 {[%emt 0:00:05]} Qc5+ {[%emt 0:00:06]} 32. Kd2 {[%emt 0:00:57]} Qb4+ {[%emt 0:00:42]} 33. Ke2 {[%emt 0:00:05]} Qxb2+ {[%emt 0:00:45]} 34. Qd2 {[%emt 0:00:05]} a1=Q {[%emt 0:00:26]} 35. Rxa1 {[%emt 0:00:03]} Qxa1 {[%emt 0:00:09]} 36. Qc2+ {[%emt 0:00:02]} Kd5 {[%emt 0:00:23]} 37. Qc4+ {[%emt 0:00:06]} Kxe5 {[%emt 0:00:12]} 38. Qc5+ {[%emt 0:00:02]} 1-0

[Event "VII Sunway Sitges Open 2020"]
[Site "Sitges"]
[Date "2020.12.15"]
[Round "3.30"]
[White "Altisen Palmada, Roberto"]
[Black "Ayats Llobera, Gerard"]
[Result "*"]
[ECO "A46"]
[WhiteElo "2102"]
[BlackElo "2400"]
[Annotator "RC"]
[PlyCount "32"]
[EventDate "2020.12.13"]
[EventType "swiss"]
[EventCountry "ESP"]
[SourceTitle "playchess.com"]
[Source "ChessBase"]
[SourceQuality "1"]
[TimeControl "40/5400+30:1800+30"]

1. d4 {[%emt 0:08:08]} Nf6 {[%emt 0:00:00]} 2. Nf3 {[%emt 0:00:30]} e6 {[%emt 0:00:00]} 3. Bg5 {[%emt 0:05:41]} c5 {[%emt 0:05:57]} 4. e3 {[%emt 0:03:42]} Qb6 {[%emt 0:00:19]} 5. Qc1 {[%emt 0:00:27]} Ne4 {[%emt 0:01:38]} 6. Bf4 {[%emt 0:00:30]} Be7 {[%emt 0:03:19]} 7. Bd3 {[%emt 0:00:40]} d5 {[%emt 0:18:55]} 8. c3 {[%emt 0:01:45]} g5 {[%emt 0:02:33]} 9. Be5 {[%emt 0:00:22]} f6 {[%emt 0:07:24]} 10. Bg3 {[%emt 0:12:17]} Nd7 {[%emt 0:00:13]} 11. Bxe4 {[%emt 0:00:05]} dxe4 {[%emt 0:03:36]} 12. Nfd2 {[%emt 0:01:27]} f5 {[%emt 0:15:01]} 13. Na3 {[%emt 0:00:54]} cxd4 {[%emt 0:06:27]} 14. cxd4 {[%emt 0:04:28]} O-O {[%emt 0:08:20]} 15. h4 {[%emt 0:00:23]} f4 {[%emt 0:06:20]} 16. Bh2 Ne5 *

[Event "VII Sunway Sitges Open 2020"]
[Site "Sitges"]
[Date "2020.12.15"]
[Round "3.31"]
[White "Valenzuela Gomez, Fernando"]
[Black "Llopis de Aysa, Manuel"]
[Result "*"]
[ECO "B90"]
[WhiteElo "2390"]
[BlackElo "2093"]
[Annotator "RC"]
[PlyCount "51"]
[EventDate "2020.12.13"]
[EventType "swiss"]
[EventCountry "ESP"]
[SourceTitle "playchess.com"]
[Source "ChessBase"]
[SourceQuality "1"]
[TimeControl "40/5400+30:1800+30"]

1. e4 c5 2. Nf3 d6 3. d4 cxd4 4. Nxd4 Nf6 5. Nc3 a6 6. Be3 e5 7. Nb3 Be6 8. f3 h5 9. Nd5 Bxd5 10. exd5 Nbd7 11. Qd2 g6 12. c4 b6 13. a4 a5 14. Nc1 Bg7 15. Rb1 O-O 16. Be2 Nc5 17. Bd1 e4 18. f4 Ng4 19. O-O Nxe3 20. Qxe3 f5 21. b4 axb4 22. Rxb4 Qc7 23. Ne2 Ra6 24. Bc2 Nd3 25. Bxd3 exd3 26. Nc1 *

[Event "VII Sunway Sitges Open 2020"]
[Site "Sitges"]
[Date "2020.12.16"]
[Round "4.5"]
[White "Batsiashvili, Nino"]
[Black "Grigoryan, Karen H."]
[Result "1-0"]
[ECO "E70"]
[WhiteElo "2460"]
[BlackElo "2659"]
[Annotator "ChessBase"]
[PlyCount "115"]
[EventDate "2020.12.13"]
[EventType "swiss"]
[EventCountry "ESP"]
[SourceTitle "playchess.com"]
[Source "ChessBase"]
[SourceQuality "1"]
[TimeControl "40/5400+30:1800+30"]

1. d4 {[%emt 0:00:00]} Nf6 {[%emt 0:00:00]} 2. c4 {[%emt 0:00:00]} g6 {[%emt 0:00:00]} 3. Nc3 {[%emt 0:00:00]} Bg7 {[%emt 0:00:04]} 4. e4 {[%emt 0:00:00]} O-O {[%emt 0:00:06]} 5. h3 {[%emt 0:01:27]} c6 {[%emt 0:01:32]} 6. e5 {[%emt 0:04:31]} Ne8 {[%emt 0:01:16]} 7. Nf3 {[%emt 0:00:29]} d6 {[%emt 0:01:49]} 8. Bf4 {[%emt 0:02:51]} Nd7 {[%emt 0:08:17]} 9. Be2 {[%emt 0:03:19]} dxe5 {[%emt 0:08:23]} 10. dxe5 {[%emt 0:04:55]} Nc7 {[%emt 0:01:53]} 11. Qd2 {[%emt 0:04:13]} Ne6 {[%emt 0:01:31]} 12. Bg3 {[%emt 0:02:46]} Qa5 {[%emt 0:10:42]} 13. Qe3 {[%emt 0:01:37]} Qc5 {[%emt 0:12:54]} 14. Qd2 {[%emt 0:07:25]} b5 {[%emt 0:05:41]} 15. cxb5 {[%emt 0:03:23]} cxb5 {[%emt 0:00:59]} 16. Rc1 {[%emt 0:03:18]} Qb6 {[%emt 0:04:34]} 17. Nd5 {[%emt 0:05:30]} Qd8 {[%emt 0:00:14]} 18. Bxb5 {[%emt 0:00:16]} Nb6 {[%emt 0:01:32]} 19. Bc6 {[%emt 0:11:05]} Rb8 {[%emt 0:07:02]} 20. O-O {[%emt 0:03:11]} Nxd5 {[%emt 0:01:29]} 21. Bxd5 {[%emt 0:02:34]} Rb5 {[%emt 0:01:14]} 22. Rfd1 {[%emt 0:02:40]} Qb6 {[%emt 0:03:50]} 23. Rc6 {[%emt 0:03:45]} Qb8 {[%emt 0:01:39]} 24. Rc2 {[%emt 0:04:27]} Rd8 {[%emt 0:08:15]} 25. Bxe6 {[%emt 0:01:05]} Rxd2 {[%emt 0:01:10]} 26. Rcxd2 {[%emt 0:00:09]} Bxe6 {[%emt 0:08:18]} 27. Rd8+ {[%emt 0:00:05]} Bf8 {[%emt 0:00:06]} 28. Rxb8 {[%emt 0:07:37]} Rxb8 {[%emt 0:00:11]} 29. b3 {[%emt 0:00:03]} h6 {[%emt 0:03:00]} 30. Bf4 {[%emt 0:00:37]} a5 {[%emt 0:01:57]} 31. Rd4 {[%emt 0:00:20]} Ra8 {[%emt 0:00:59]} 32. Bd2 {[%emt 0:01:19]} a4 {[%emt 0:00:27]} 33. Rxa4 {[%emt 0:00:08]} Rxa4 {[%emt 0:00:04]} 34. bxa4 {[%emt 0:00:04]} Bxa2 {[%emt 0:00:08]} 35. Bb4 {[%emt 0:00:39]} e6 {[%emt 0:02:29]} 36. Bxf8 {[%emt 0:06:38]} Kxf8 {[%emt 0:00:06]} 37. Nd4 {[%emt 0:00:25]} Ke7 {[%emt 0:01:03]} 38. f4 {[%emt 0:02:09]} Kd7 {[%emt 0:02:45]} 39. Kf2 {[%emt 0:00:06]} Bc4 {[%emt 0:00:56]} 40. g4 {[%emt 0:00:00]} Kc7 {[%emt 0:00:00]} 41. a5 {[%emt 0:06:59]} Kb7 {[%emt 0:01:58]} 42. Ke3 {[%emt 0:00:05]} Bf1 {[%emt 0:14:44]} 43. h4 {[%emt 0:00:13]} Bh3 {[%emt 0:00:27]} 44. Nb5 {[%emt 0:07:19]} Ka6 {[%emt 0:07:28]} 45. Nd6 {[%emt 0:00:07]} Kxa5 {[%emt 0:01:06]} 46. Nxf7 {[%emt 0:03:40]} Bxg4 {[%emt 0:00:41]} 47. Nxh6 {[%emt 0:00:05]} Bh3 {[%emt 0:05:06]} 48. Kf2 {[%emt 0:00:32]} Kb6 {[%emt 0:00:44]} 49. Kg3 {[%emt 0:00:04]} Bf1 {[%emt 0:00:20]} 50. Kg4 {[%emt 0:00:01]} Bd3 {[%emt 0:00:47]} 51. Kg5 {[%emt 0:00:05]} Kc7 {[%emt 0:00:10]} 52. Kf6 {[%emt 0:00:38]} Kd7 {[%emt 0:00:08]} 53. Nf7 {[%emt 0:00:13]} Bf5 {[%emt 0:00:34]} 54. Nh8 {[%emt 0:00:05]} Ke8 {[%emt 0:00:21]} 55. Nxg6 {[%emt 0:00:08]} Bg4 {[%emt 0:00:04]} 56. Ne7 {[%emt 0:00:42]} Kf8 {[%emt 0:00:14]} 57. Nc6 {[%emt 0:00:10]} Ke8 {[%emt 0:00:26]} 58. Nd4 {[%emt 0:00:29]} 1-0

[Event "VII Sunway Sitges Open 2020"]
[Site "Sitges"]
[Date "2020.12.16"]
[Round "4.6"]
[White "Santos Latasa, Jaime"]
[Black "Gines Esteo, Pedro Antonio"]
[Result "1-0"]
[ECO "E15"]
[WhiteElo "2600"]
[BlackElo "2437"]
[Annotator "ChessBase"]
[PlyCount "81"]
[EventDate "2020.12.13"]
[EventType "swiss"]
[EventCountry "ESP"]
[SourceTitle "playchess.com"]
[Source "ChessBase"]
[SourceQuality "1"]
[TimeControl "40/5400+30:1800+30"]

1. Nf3 {[%emt 0:00:00]} Nf6 {[%emt 0:03:51]} 2. c4 {[%emt 0:00:32]} b6 {[%emt 0:07:07]} 3. d4 {[%emt 0:00:59]} e6 {[%emt 0:00:30]} 4. g3 {[%emt 0:00:29]} Bb4+ {[%emt 0:05:22]} 5. Bd2 {[%emt 0:00:16]} a5 {[%emt 0:05:14]} 6. Bg2 {[%emt 0:01:02]} Bb7 {[%emt 0:00:08]} 7. O-O {[%emt 0:00:07]} Bxd2 {[%emt 0:05:38]} 8. Qxd2 {[%emt 0:01:09]} O-O {[%emt 0:00:06]} 9. Qf4 {[%emt 0:09:43]} d6 {[%emt 0:02:32]} 10. Nc3 {[%emt 0:01:38]} Nbd7 {[%emt 0:07:13]} 11. e4 {[%emt 0:02:09]} c5 {[%emt 0:11:06]} 12. d5 {[%emt 0:09:40]} e5 {[%emt 0:05:02]} 13. Qd2 {[%emt 0:01:43]} Ba6 {[%emt 0:01:08]} 14. b3 {[%emt 0:03:17]} Ne8 {[%emt 0:00:54]} 15. Ne1 {[%emt 0:00:16]} Nc7 {[%emt 0:05:48]} 16. a4 {[%emt 0:02:34]} Bc8 {[%emt 0:00:06]} 17. f4 {[%emt 0:00:50]} Na6 {[%emt 0:05:45]} 18. Nf3 {[%emt 0:00:34]} Nb4 {[%emt 0:01:36]} 19. Rae1 {[%emt 0:00:50]} f6 {[%emt 0:02:51]} 20. h4 {[%emt 0:06:09]} Rf7 {[%emt 0:00:16]} 21. Kh2 {[%emt 0:01:08]} Nf8 {[%emt 0:00:19]} 22. f5 {[%emt 0:00:13]} g6 {[%emt 0:00:45]} 23. Bh3 {[%emt 0:01:08]} Rg7 {[%emt 0:00:34]} 24. Nd1 {[%emt 0:07:49]} gxf5 {[%emt 0:07:24]} 25. exf5 {[%emt 0:01:35]} b5 {[%emt 0:00:06]} 26. axb5 {[%emt 0:03:53]} a4 {[%emt 0:00:08]} 27. bxa4 {[%emt 0:00:04]} Rxa4 {[%emt 0:00:04]} 28. Nc3 {[%emt 0:00:07]} Ra3 {[%emt 0:00:03]} 29. Ra1 {[%emt 0:00:19]} Rga7 {[%emt 0:01:40]} 30. Rxa3 {[%emt 0:03:42]} Rxa3 {[%emt 0:00:02]} 31. Rf2 {[%emt 0:00:13]} Nd7 {[%emt 0:03:32]} 32. Ne4 {[%emt 0:00:49]} Qf8 {[%emt 0:00:03]} 33. Bf1 {[%emt 0:02:58]} Kf7 {[%emt 0:05:00]} 34. g4 {[%emt 0:02:08]} Ke7 {[%emt 0:00:23]} 35. Qc1 {[%emt 0:03:16]} Rb3 {[%emt 0:01:26]} 36. g5 {[%emt 0:01:39]} fxg5 {[%emt 0:00:03]} 37. Qxg5+ {[%emt 0:00:27]} Nf6 {[%emt 0:00:16]} 38. Nfd2 {[%emt 0:00:30]} Re3 {[%emt 0:02:55]} 39. Nxf6 {[%emt 0:00:20]} Qxf6 {[%emt 0:00:06]} 40. Qxe3 {[%emt 0:00:00]} Qxh4+ {[%emt 0:00:00]} 41. Bh3 {[%emt 0:00:40]} 1-0

[Event "VII Sunway Sitges Open 2020"]
[Site "Sitges"]
[Date "2020.12.16"]
[Round "4.9"]
[White "Fier, Alexandr"]
[Black "Bulmaga, Irina"]
[Result "1-0"]
[ECO "B90"]
[WhiteElo "2558"]
[BlackElo "2424"]
[Annotator "ChessBase"]
[PlyCount "107"]
[EventDate "2020.12.13"]
[EventType "swiss"]
[EventCountry "ESP"]
[SourceTitle "playchess.com"]
[Source "ChessBase"]
[SourceQuality "1"]
[TimeControl "40/5400+30:1800+30"]

1. e4 {[%emt 0:00:00]} c5 {[%emt 0:00:00]} 2. Nf3 {[%emt 0:00:00]} d6 {[%emt 0:00:00]} 3. d4 {[%emt 0:00:00]} cxd4 {[%emt 0:00:00]} 4. Nxd4 {[%emt 0:00:00]} Nf6 {[%emt 0:00:01]} 5. Nc3 {[%emt 0:00:00]} a6 {[%emt 0:00:07]} 6. f3 {[%emt 0:00:00]} e5 {[%emt 0:00:14]} 7. Nb3 {[%emt 0:00:00]} Be6 {[%emt 0:00:17]} 8. Be3 Be7 {[%emt 0:00:13]} 9. Qd2 {[%emt 0:00:00]} O-O {[%emt 0:00:12]} 10. O-O-O Nbd7 {[%emt 0:00:28]} 11. g4 {[%emt 0:00:04]} b5 {[%emt 0:00:12]} 12. g5 Nh5 {[%emt 0:00:08]} 13. Kb1 {[%emt 0:00:06]} Nb6 {[%emt 0:00:44]} 14. Na5 {[%emt 0:00:04]} Rc8 15. a3 g6 {[%emt 0:01:56]} 16. h4 {[%emt 0:00:07]} Qc7 {[%emt 0:00:31]} 17. Nd5 Nxd5 {[%emt 0:00:44]} 18. exd5 {[%emt 0:01:33]} Bxd5 {[%emt 0:00:44]} 19. Qxd5 {[%emt 0:00:05]} Qxa5 {[%emt 0:02:22]} 20. Bd3 {[%emt 0:00:43]} Qc7 {[%emt 0:09:28]} 21. Rhg1 Rb8 22. Be4 {[%emt 0:13:57]} a5 {[%emt 0:11:49]} 23. Qd3 {[%emt 0:00:35]} Rfc8 {[%emt 0:18:10]} 24. Bd5 {[%emt 0:00:30]} Qd7 {[%emt 0:13:17]} 25. Rdf1 {[%emt 0:04:32]} b4 {[%emt 0:08:56]} 26. a4 {[%emt 0:02:47]} Qxa4 {[%emt 0:04:53]} 27. f4 Qb5 {[%emt 0:17:52]} 28. fxe5 {[%emt 0:00:41]} Qxd3 29. cxd3 {[%emt 0:07:07]} Rf8 {[%emt 0:02:30]} 30. e6 {[%emt 0:00:09]} f5 {[%emt 0:00:33]} 31. gxf6 {[%emt 0:00:16]} Nxf6 {[%emt 0:00:47]} 32. Bb3 {[%emt 0:00:02]} Ra8 {[%emt 0:03:20]} 33. Bh6 {[%emt 0:01:04]} Rfc8 {[%emt 0:01:36]} 34. Ba4 {[%emt 0:04:23]} Rc5 {[%emt 0:00:41]} 35. d4 {[%emt 0:03:33]} Rc7 {[%emt 0:01:28]} 36. h5 {[%emt 0:01:26]} Bf8 {[%emt 0:02:56]} 37. Bxf8 {[%emt 0:00:55]} Rxf8 {[%emt 0:00:01]} 38. hxg6 h5 {[%emt 0:01:16]} 39. g7 {[%emt 0:01:57]} Rxg7 {[%emt 0:00:04]} 40. e7 {[%emt 0:00:00]} Rc8 {[%emt 0:00:00]} 41. Rh1 Rg6 {[%emt 0:08:32]} 42. Rxf6 {[%emt 0:03:17]} Rxf6 {[%emt 0:00:03]} 43. e8=Q+ {[%emt 0:00:05]} Rxe8 {[%emt 0:00:08]} 44. Bxe8 {[%emt 0:00:02]} Rf4 {[%emt 0:01:28]} 45. Bxh5 {[%emt 0:07:17]} Rxd4 {[%emt 0:00:10]} 46. Bd1 {[%emt 0:00:02]} Kf8 {[%emt 0:11:03]} 47. Bb3 {[%emt 0:00:09]} Ke7 {[%emt 0:00:00]} 48. Rh7+ {[%emt 0:00:07]} Kf6 {[%emt 0:03:54]} 49. Ra7 {[%emt 0:00:04]} Ke5 {[%emt 0:00:42]} 50. Rxa5+ {[%emt 0:00:04]} Ke4 {[%emt 0:02:53]} 51. Kc2 {[%emt 0:00:10]} Kf4 {[%emt 0:02:20]} 52. Rd5 Ke3 {[%emt 0:00:51]} 53. Rxd4 {[%emt 0:00:12]} Kxd4 {[%emt 0:00:04]} 54. Bf7 {[%emt 0:00:04]} 1-0

[Event "VII Sunway Sitges Open 2020"]
[Site "Sitges"]
[Date "2020.12.16"]
[Round "4.11"]
[White "Krysa, Leandro"]
[Black "Carbonell Sancho, Marc"]
[Result "1/2-1/2"]
[ECO "E92"]
[WhiteElo "2531"]
[BlackElo "2274"]
[Annotator "ChessBase"]
[PlyCount "48"]
[EventDate "2020.12.13"]
[EventType "swiss"]
[EventCountry "ESP"]
[SourceTitle "playchess.com"]
[Source "ChessBase"]
[SourceQuality "1"]
[TimeControl "40/5400+30:1800+30"]

1. d4 {[%emt 0:00:00]} Nf6 {[%emt 0:00:00]} 2. c4 {[%emt 0:00:00]} g6 {[%emt 0:00:00]} 3. Nc3 {[%emt 0:00:00]} Bg7 {[%emt 0:00:00]} 4. e4 {[%emt 0:00:00]} d6 {[%emt 0:00:00]} 5. Nf3 {[%emt 0:00:03]} O-O {[%emt 0:00:00]} 6. Be2 {[%emt 0:00:21]} e5 {[%emt 0:03:21]} 7. Be3 {[%emt 0:00:14]} exd4 {[%emt 0:00:46]} 8. Nxd4 {[%emt 0:00:12]} Re8 {[%emt 0:01:41]} 9. f3 {[%emt 0:00:30]} c6 {[%emt 0:03:53]} 10. Bf2 {[%emt 0:00:10]} Nbd7 {[%emt 0:02:35]} 11. O-O {[%emt 0:04:33]} Qe7 {[%emt 0:10:28]} 12. Re1 {[%emt 0:06:57]} Bh6 {[%emt 0:07:31]} 13. Bf1 {[%emt 0:03:06]} Bg5 {[%emt 0:01:03]} 14. Kh1 {[%emt 0:04:21]} h5 {[%emt 0:01:06]} 15. Qc2 {[%emt 0:19:09]} h4 {[%emt 0:02:27]} 16. Be3 {[%emt 0:19:20]} Bxe3 {[%emt 0:08:22]} 17. Rxe3 {[%emt 0:00:07]} Nh5 {[%emt 0:01:43]} 18. Qd2 {[%emt 0:06:51]} Ne5 {[%emt 0:01:24]} 19. b3 {[%emt 0:02:15]} Be6 {[%emt 0:06:53]} 20. Rd1 {[%emt 0:01:37]} Rad8 {[%emt 0:00:50]} 21. Qf2 {[%emt 0:09:55]} Qf6 {[%emt 0:12:11]} 22. Kg1 {[%emt 0:02:10]} a6 {[%emt 0:00:07]} 23. Rd2 {[%emt 0:06:40]} g5 {[%emt 0:04:09]} 24. h3 {[%emt 0:04:12]} Nf4 {[%emt 0:12:39]} 1/2-1/2

[Event "VII Sunway Sitges Open 2020"]
[Site "Sitges"]
[Date "2020.12.16"]
[Round "4.13"]
[White "Lagarde, Maxime"]
[Black "Esplugas Esteve, Vicenc"]
[Result "1-0"]
[ECO "C15"]
[WhiteElo "2651"]
[BlackElo "2319"]
[Annotator "ChessBase"]
[PlyCount "85"]
[EventDate "2020.12.13"]
[EventType "swiss"]
[EventCountry "ESP"]
[SourceTitle "playchess.com"]
[Source "ChessBase"]
[SourceQuality "1"]
[TimeControl "40/5400+30:1800+30"]

1. e4 {[%emt 0:00:00]} e6 {[%emt 0:00:00]} 2. d4 {[%emt 0:00:15]} d5 {[%emt 0:00:00]} 3. Nc3 {[%emt 0:00:02]} Bb4 {[%emt 0:00:00]} 4. Nge2 {[%emt 0:03:44]} dxe4 {[%emt 0:00:00]} 5. a3 {[%emt 0:00:03]} Bxc3+ {[%emt 0:00:00]} 6. Nxc3 {[%emt 0:00:04]} Nc6 {[%emt 0:00:03]} 7. Bb5 {[%emt 0:00:57]} Nge7 {[%emt 0:00:07]} 8. Bg5 {[%emt 0:04:02]} f6 {[%emt 0:00:48]} 9. Be3 {[%emt 0:01:13]} O-O {[%emt 0:00:12]} 10. Qd2 {[%emt 0:04:30]} f5 {[%emt 0:00:52]} 11. f3 {[%emt 0:06:44]} a6 {[%emt 0:01:12]} 12. Bxc6 {[%emt 0:02:08]} Nxc6 {[%emt 0:00:07]} 13. fxe4 {[%emt 0:03:19]} e5 {[%emt 0:00:25]} 14. d5 {[%emt 0:01:16]} Na5 {[%emt 0:00:12]} 15. b3 {[%emt 0:03:15]} Qd6 {[%emt 0:01:57]} 16. Qd3 {[%emt 0:06:47]} b6 {[%emt 0:01:34]} 17. Bc1 Qg6 {[%emt 0:10:40]} 18. Qg3 {[%emt 0:18:46]} f4 {[%emt 0:15:14]} 19. Qxg6 {[%emt 0:02:51]} hxg6 {[%emt 0:00:03]} 20. Bb2 {[%emt 0:01:12]} Bd7 21. O-O-O {[%emt 0:06:15]} Nb7 {[%emt 0:10:43]} 22. Na2 Rae8 {[%emt 0:09:51]} 23. Nb4 {[%emt 0:05:22]} Nc5 {[%emt 0:00:23]} 24. Nd3 Bg4 {[%emt 0:11:45]} 25. Nxc5 {[%emt 0:12:43]} Bxd1 {[%emt 0:00:11]} 26. Nd7 {[%emt 0:02:38]} Bh5 {[%emt 0:02:09]} 27. Nxf8 {[%emt 0:01:59]} Kxf8 {[%emt 0:00:03]} 28. h4 {[%emt 0:03:12]} Bg4 {[%emt 0:05:22]} 29. c4 {[%emt 0:02:22]} Ke7 {[%emt 0:03:00]} 30. Kd2 {[%emt 0:04:43]} Kd6 {[%emt 0:00:24]} 31. b4 {[%emt 0:00:07]} c5 {[%emt 0:03:42]} 32. Bc3 {[%emt 0:00:40]} b5 {[%emt 0:05:47]} 33. a4 {[%emt 0:00:30]} f3 {[%emt 0:05:36]} 34. gxf3 {[%emt 0:01:35]} Bxf3 {[%emt 0:00:05]} 35. Ra1 {[%emt 0:00:17]} bxc4 {[%emt 0:01:10]} 36. Ke3 {[%emt 0:00:29]} Bg4 {[%emt 0:03:16]} 37. b5 {[%emt 0:00:29]} Ra8 {[%emt 0:02:29]} 38. bxa6 {[%emt 0:01:04]} Rxa6 {[%emt 0:00:09]} 39. a5 {[%emt 0:00:03]} Bd7 {[%emt 0:05:17]} 40. Rb1 {[%emt 0:00:00]} Ke7 {[%emt 0:00:00]} 41. Rb6 {[%emt 0:01:37]} Rxb6 {[%emt 0:02:58]} 42. axb6 {[%emt 0:00:04]} Kd6 {[%emt 0:00:14]} 43. Bxe5+ 1-0

[Event "VII Sunway Sitges Open 2020"]
[Site "Sitges"]
[Date "2020.12.16"]
[Round "4.14"]
[White "Msellek, Ilyass"]
[Black "Lopez Martinez, Josep Manuel"]
[Result "0-1"]
[ECO "B87"]
[WhiteElo "2316"]
[BlackElo "2542"]
[Annotator "ChessBase"]
[PlyCount "60"]
[EventDate "2020.12.13"]
[EventType "swiss"]
[EventCountry "ESP"]
[SourceTitle "playchess.com"]
[Source "ChessBase"]
[SourceQuality "1"]
[TimeControl "40/5400+30:1800+30"]

1. e4 {[%emt 0:00:00]} c5 {[%emt 0:20:49]} 2. Nf3 {[%emt 0:00:00]} d6 {[%emt 0:00:48]} 3. d4 {[%emt 0:00:00]} cxd4 {[%emt 0:00:19]} 4. Nxd4 {[%emt 0:00:00]} Nf6 {[%emt 0:00:07]} 5. Nc3 {[%emt 0:00:00]} a6 {[%emt 0:00:44]} 6. Bc4 {[%emt 0:00:14]} e6 {[%emt 0:01:43]} 7. Bb3 {[%emt 0:00:17]} b5 {[%emt 0:01:48]} 8. a3 {[%emt 0:00:53]} Bd7 {[%emt 0:07:22]} 9. g4 {[%emt 0:09:54]} h6 {[%emt 0:01:00]} 10. h4 {[%emt 0:05:28]} Nc6 {[%emt 0:10:19]} 11. Rg1 {[%emt 0:04:10]} Nxd4 {[%emt 0:08:55]} 12. Qxd4 {[%emt 0:00:09]} Bc6 {[%emt 0:00:10]} 13. Be3 {[%emt 0:23:30]} Nd7 {[%emt 0:00:58]} 14. O-O-O {[%emt 0:03:16]} Qxh4 {[%emt 0:08:02]} 15. g5 {[%emt 0:03:21]} hxg5 {[%emt 0:03:46]} 16. Bxg5 {[%emt 0:00:48]} Qh2 {[%emt 0:05:01]} 17. Nd5 {[%emt 0:01:48]} Bxd5 {[%emt 0:00:17]} 18. Bxd5 {[%emt 0:11:42]} exd5 {[%emt 0:00:22]} 19. Rde1 {[%emt 0:07:05]} f6 {[%emt 0:08:14]} 20. exd5+ {[%emt 0:18:33]} Kf7 {[%emt 0:02:36]} 21. Qg4 {[%emt 0:03:00]} Nc5 {[%emt 0:04:11]} 22. Bxf6 {[%emt 0:00:20]} Qh5 {[%emt 0:02:04]} 23. Re7+ {[%emt 0:00:10]} Kxf6 {[%emt 0:00:06]} 24. Re6+ {[%emt 0:04:09]} Kf7 {[%emt 0:00:11]} 25. Qf4+ {[%emt 0:01:08]} Kg8 {[%emt 0:00:11]} 26. Reg6 {[%emt 0:00:19]} Ra7 {[%emt 0:02:09]} 27. R6g5 {[%emt 0:01:22]} Rf7 {[%emt 0:00:41]} 28. Qe3 {[%emt 0:00:29]} Qh4 {[%emt 0:01:04]} 29. b4 {[%emt 0:00:19]} Nd7 {[%emt 0:00:51]} 30. R1g3 {[%emt 0:01:30]} Ne5 0-1